Cogmind - Beta 13 @@@ ROGUE MODE // 2024.06.06 @ 21:28:41 Player: Sherlockkat Result: Self-destructed Performance ------------- Evolutions (5) 2500 Regions Visited (14) 2800 Robots Destroyed (158) 790 Value Destroyed (5154) 5154 Prototype IDs (26) 520 Alien Tech Used (0) 0 Bonus (983) 983 TOTAL SCORE: 12747 Bonus ------- High Alert Combat Kills 385 Follower Combat Kills 1331 Met Data Miner 300 Built Enhanced Grunts 300 A7 Reached Mainframe 300 Met R17 at Cetus 500 Friendly Fire -2133 Cogmind --------- Core Integrity 601/1000 Matter 297/300 Energy 46/100 System Corruption 12% Temperature Cool (0) Movement Immobile (Siege) Location -5/Factory Parts ------- > --- POWER (2) -------- (None) > --- PROPULSION (4) --- Centrium Heavy Treads Centrium Heavy Treads > --- UTILITY (8) ------ Advanced Cooling System High-capacity Storage Unit Enhanced Optical Array Improved Signal Interpreter Hacking Suite > --- WEAPON (3) ------- Long-range Proton Cannon Coil Gun > --- INVENTORY (20) --- Advanced Energy Well (500) Advanced Sensor Array Advanced Particle Charger Improved Kinecellerator Improved Weapon Cycler Centrium Medium Armor Plating KE Penetrator Advanced KE Penetrator Magnetic Acceleration Cannon Katana Peak State ------------ > --- POWER ------------ Quantum Reactor > --- PROPULSION ------- Centrium Heavy Treads Centrium Heavy Treads > --- UTILITY ---------- Advanced Cooling System High-capacity Storage Unit Enhanced Optical Array Improved Signal Interpreter Centrium Medium Armor Plating Hacking Suite High-powered Tractor Beam > --- WEAPON ----------- Neutron Cannon Coil Gun Advanced KE Penetrator > --- INVENTORY -------- Advanced Energy Well Advanced Sensor Array Advanced Particle Charger Improved Kinecellerator Improved Weapon Cycler Centrium Medium Armor Plating Long-range Proton Cannon KE Penetrator Magnetic Acceleration Cannon Katana [Rating: 100] Favorites ----------- Power Improved Deuterium Engine Engine Improved Deuterium Engine Power Core Micro Nuclear Core Reactor Quantum Reactor Propulsion Compact Wheel Treads Improved Medium Treads Leg Aluminum Leg Wheel Compact Wheel Utility High-capacity Storage Unit Device Improved Heat Sink Storage High-capacity Storage Unit Processor Enhanced Optical Array Hackware Hacking Suite Protection Improved Light Armor Plating Weapon Enhanced Autogun Energy Gun Gatling Laser Energy Cannon Heavy Ion Cannon Ballistic Gun Enhanced Autogun Ballistic Cannon Gauss Cannon Launcher Rocket Launcher Slashing Weapon Katana Build | -11 -10 -9 -9 -8 -7 -7 -7 -7 -6 -6 -6 -6 -6 -5 ------- Run | Yrd Mat Mat Min Mat Fac Low Low Dat Pro Fac Ext Cet Arc Fac Slots Evolved 10 | . . 2 . 2 2 . . . . 2 . . . 2 Power 1 | . . . . . . . . . . . . . . 1 Propulsion 2 | . . 1 . 1 . . . . . . . . . . Utility 6 | . . 1 . 1 1 . . . . 2 . . . 1 Weapon 1 | . . . . . 1 . . . . . . . . . Parts Attached 195 | 7 12 24 . 14 17 . . . 6 29 19 13 14 40 Power 18 | 1 2 3 . . 4 . . . . 1 1 2 . 4 Engine 8 | 1 2 3 . . 1 . . . . . 1 . . . Core 6 | . . . . . 3 . . . . 1 . 1 . 1 Reactor 4 | . . . . . . . . . . . . 1 . 3 Propulsion 46 | 2 5 5 . 5 2 . . . 1 9 4 4 4 5 Treads 12 | . . . . . . . . . . . . 4 3 5 Leg 2 | . 1 . . . . . . . . . . . 1 . Wheel 32 | 2 4 5 . 5 2 . . . 1 9 4 . . . Hover . | . . . . . . . . . . . . . . . Flight . | . . . . . . . . . . . . . . . Utility 63 | 2 3 7 . 3 4 . . . 2 13 7 2 7 13 Device 29 | 1 1 3 . 2 1 . . . 1 8 3 . 3 6 Storage 6 | 1 2 1 . . . . . . . . . . 1 1 Processor 5 | . . . . . 1 . . . . 2 . . . 2 Hackware 1 | . . . . . 1 . . . . . . . . . Protection 22 | . . 3 . 1 1 . . . 1 3 4 2 3 4 Artifact . | . . . . . . . . . . . . . . . Weapon 68 | 2 2 9 . 6 7 . . . 3 6 7 5 3 18 Energy Gun 17 | 1 2 3 . 1 4 . . . 1 1 1 2 1 . Energy Cannon 14 | . . 1 . 1 1 . . . . 1 1 . 1 8 Ballistic Gun 23 | 1 . 5 . 3 1 . . . 1 1 1 2 1 7 Ballistic Cannon 6 | . . . . . . . . . . 1 2 1 . 2 Launcher 5 | . . . . 1 1 . . . 1 1 1 . . . Special Weapon . | . . . . . . . . . . . . . . . Impact Weapon . | . . . . . . . . . . . . . . . Slashing Weapon 3 | . . . . . . . . . . 1 1 . . 1 Piercing Weapon . | . . . . . . . . . . . . . . . Special Melee Weapon . | . . . . . . . . . . . . . . . Unidentified Prototypes 15 | . . 3 . 2 2 . . . . . . 3 4 1 Corrupted Parts 1 | . . . . . . . . . . . . 1 . . System Corruption 5 | . . . . . . . . . . . . 5 . . Parts Lost 62 | . 10 9 . 2 1 . . . 1 7 14 1 1 16 Power 6 | . 2 2 . . . . . . . . . . . 2 Propulsion 19 | . 4 3 . . 1 . . . . 3 6 . . 2 Utility 23 | . 1 2 . 2 . . . . 1 4 4 . 1 8 Weapon 14 | . 3 2 . . . . . . . . 4 1 . 4 Highest Loss Streak 11 | . 5 2 . 2 1 . . . 1 5 5 1 1 11 To Critical Strikes 1 | . . . . . . . . . . . 1 . . . Average Slot Usage (%) 91 | . 72 93 100 98 90 92 92 92 90 89 92 96 98 93 Engine 4 | . 11 10 11 9 1 7 7 7 7 . 5 . . . Core 1 | . . . . . 5 . . . . 5 . 4 . 1 Reactor 1 | . . . . . . . . . . . . 1 6 4 Treads 6 | . . . . . . . . . . . . 22 25 22 Wheel 16 | . 10 28 33 36 23 23 23 23 23 22 21 1 . . Device 10 | . 3 10 11 16 6 7 7 7 4 9 13 13 12 14 Storage 7 | . 14 11 11 9 7 7 7 7 7 6 6 6 6 5 Processor 6 | . . . . . 5 7 7 7 7 9 8 6 6 10 Hackware 4 | . . . . . 7 7 7 7 7 6 6 6 6 5 Protection 7 | . . 9 11 9 7 7 7 7 8 6 6 13 13 7 Energy Gun 7 | . 13 8 . 4 5 15 15 15 14 8 . 5 6 2 Energy Cannon 2 | . . . . 8 6 . . . . . 3 . . 3 Ballistic Gun 7 | . 11 13 22 4 8 7 7 7 7 5 6 4 5 5 Ballistic Cannon 2 | . . . . . . . . . . 2 7 6 6 3 Naked Turns . | . . . . . . . . . . . . . . . Heaviest Build 106 | 12 28 58 58 62 69 65 65 65 67 75 88 83 93 106 Greatest Support 110 | 20 20 36 36 64 64 54 54 54 54 58 52 100 110 110 Greatest Overweight (x) 7 | . 4 2 1 1 1 1 1 1 1 4 7 3 1 1 Average Overweight (x) . | . 1 . 1 . . 1 1 1 1 1 1 . . . Largest Inventory Capacity 20 | 8 15 20 20 20 20 20 20 20 20 20 20 20 20 20 Average Capacity 18 | 5 10 17 20 20 20 20 20 20 20 20 20 20 20 20 Most Carried 20 | 5 8 20 20 20 20 20 20 20 20 20 20 20 20 20 Average Carried 17 | 3 4 14 20 19 19 20 20 20 20 19 17 19 19 19 Final Capacity 20 | 8 15 20 20 20 20 20 20 20 20 20 20 20 20 20 Final Carried 20 | 4 8 20 20 18 20 20 20 20 20 20 20 20 20 10 Class Distribution -------------------- 39% | Scavenger-Gunner 19% | Scavenger-Tank 16% | Scavenger-Mutant 9% | Mutant 5% | Gunner 5% | Commander-Tank Dominant Class ---------------- Mutant | -10/Materials Scavenger-Mutant | -9/Materials Scavenger-Mutant | -9/Mines Scavenger-Mutant | -8/Materials Scavenger-Gunner | -7/Factory Scavenger-Gunner | -7/Lower Caves Scavenger-Gunner | -7/Lower Caves Scavenger-Gunner | -7/Data Miner Scavenger-Gunner | -6/Proximity Caves Scavenger-Gunner | -6/Factory Scavenger-Tank | -6/Extension Commander-Tank | -6/Cetus Scavenger-Tank | -6/Archives Scavenger-Gunner | -5/Factory Resources | -11 -10 -9 -9 -8 -7 -7 -7 -7 -6 -6 -6 -6 -6 -5 ----------- Run | Yrd Mat Mat Min Mat Fac Low Low Dat Pro Fac Ext Cet Arc Fac Matter Collected 4085 | 275 129 419 . 159 337 41 19 . 146 630 646 202 384 698 Remotely 366 | . . . . . . . . . . 60 120 . . 186 Salvage Created 6490 | 118 664 979 . 339 636 41 29 . 147 930 789 44 475 1299 Parts 352 | 9 39 74 . 18 36 . . . 12 39 33 2 25 65 Haulers Intercepted 9 | . 1 2 . 2 2 . . . . 2 . . . . Recyclers Shooed 9 | 1 1 1 . 2 . . . . . 2 1 . . 1 Parts Field Recycled . | . . . . . . . . . . . . . . . Retrieved Matter . | . . . . . . . . . . . . . . . Parts Self-Destructed 11 | . . . . . . . . . 11 . . . . . Prevented . | . . . . . . . . . . . . . . . Kills | -11 -10 -9 -9 -8 -7 -7 -7 -7 -6 -6 -6 -6 -6 -5 ------- Run | Yrd Mat Mat Min Mat Fac Low Low Dat Pro Fac Ext Cet Arc Fac Combat Hostiles Destroyed 107 | . 10 19 . 8 13 . 1 . 4 12 18 1 . 21 Guns 56 | . 10 19 . 5 4 . 1 . 4 4 3 . . 6 Cannons 40 | . . . . 1 9 . . . . 4 14 1 . 11 AOE 10 | . . . . 2 . . . . . 4 1 . . 3 Classes Destroyed 16 | 2 4 3 . . 2 . . . 2 1 1 . . 1 Worker 13 | . 4 1 . 1 3 . . . . 3 . . . 1 Builder 4 | . . 1 . . 1 . . . . . . . . 2 Tunneler 5 | 2 1 2 . . . . . . . . . . . . Hauler 9 | . 1 2 . 2 2 . . . . 2 . . . . Recycler 9 | 1 2 1 . . . . . . . 3 . . . 2 Operator 3 | . . 1 . . . . . . . 1 . . 1 . Drone 1 | . . . . . . . . . 1 . . . . . Watcher 3 | . . . . . . . . . . . 1 . . 2 Swarmer 34 | . 3 8 . 3 6 . . . . 4 5 . . 5 Grunt 31 | . 7 4 . 5 3 . . . . 3 6 . . 3 Brawler 1 | . . . . . 1 . . . . . . . . . Duelist 1 | . . . . . . . . . . 1 . . . . Sentry 14 | . . 7 . . . . . . 1 2 3 . . 1 Specialist 1 | . . . . . . . . . . . . . . 1 Hunter 10 | . . . . . . . . . 2 2 2 . . 4 Programmer 12 | . . . . . 3 . 1 . . . 1 . . 7 Cetus Guard 1 | . . . . . . . . . . . . 1 . . Enhanced Grunt 5 | . . . . . . . . . . . . . 5 . Packrat 1 | . . . . . . 1 . . . . . . . . Savage 1 | . . . . . . . . . . . 1 . . . Best Kill Streak 7 | 2 3 7 . 5 4 . 1 . 2 4 4 1 1 5 Combat Bots Only 5 | . 3 5 . 3 3 . 1 . 2 4 4 1 . 5 Max Kills in Single Turn 3 | 1 1 2 . 2 2 1 1 . 1 2 1 1 1 3 Gunslinging 1 | . . 1 . . . . . . . . . . . . Exploded 3 | . . . . 2 . . . . . 2 1 . . 3 Melee . | . . . . . . . . . . . . . . . Uniques/NPCs Destroyed . | . . . . . . . . . . . . . . . Combat | -11 -10 -9 -9 -8 -7 -7 -7 -7 -6 -6 -6 -6 -6 -5 -------- Run | Yrd Mat Mat Min Mat Fac Low Low Dat Pro Fac Ext Cet Arc Fac Hostile Shots Fired 987 | . 85 99 . 67 33 . 4 . 30 121 211 19 2 316 Missed 267 | . 17 19 . 19 13 . 1 . 9 43 77 7 . 62 Damage Taken 10700 | . 811 951 . 525 302 . 45 . 749 754 1544 312 103 4604 Core 1450 | . 169 175 . 50 75 . . . 191 61 262 41 27 399 Absorbed by Shields 234 | . . . . . . . . . . 157 50 27 . . Reduced by Siege Mode 231 | . . . . . . . . . . . . . . 231 Redirected to Shielding 93 | . . . . . . . . . . . . 22 . 71 Regen/Repaired (Parts) 37 | . . . . . 37 . . . . . . . . . Core Remaining (%) 65 | 100 32 . 56 90 . . . . 62 . . . 54 . Volleys Fired 437 | 5 67 74 . 32 35 2 3 . 14 54 62 7 22 60 Largest 3 | 2 2 2 . 2 3 2 3 . 3 3 3 3 3 3 Hottest 237 | 70 70 112 . 124 170 155 180 . 180 220 170 162 170 237 Shots Fired 972 | 10 116 147 . 62 96 4 9 . 33 123 173 20 42 137 Gun 638 | 10 116 147 . 30 63 4 9 . 29 72 67 9 32 50 Cannon 321 | . . . . 30 32 . . . . 49 102 11 10 87 Launcher 13 | . . . . 2 1 . . . 4 2 4 . . . Special . | . . . . . . . . . . . . . . . Kinetic 505 | 5 53 85 . 20 36 . 3 . 10 83 109 18 20 63 Thermal 414 | 5 51 49 . 40 59 4 6 . 19 38 60 2 22 59 Explosive 13 | . . . . 2 1 . . . 4 2 4 . . . Electromagnetic 40 | . 12 13 . . . . . . . . . . . 15 Robot Hit Streak 20 | 6 8 20 . 9 7 8 9 . 7 15 11 6 4 15 Robot Miss Streak 13 | 1 5 7 . 6 6 3 3 . 13 4 7 4 6 3 Penetration Max 1 | . . . . . . . . . . . . . 1 1 Secondary Targets 4 | . . 3 . . . . . . . . . . . 1 Max Gunslinging Chain 1 | . . 1 . . . . . . . . . . . 1 Shots Hit Robots 633 | 7 77 97 . 34 60 3 9 . 19 97 111 12 24 83 Core Hits 327 | 5 34 39 . 18 36 5 4 . 18 61 49 6 13 39 Critical Kills 10 | . . 1 . . 1 . . . . . . . 4 4 Critical Parts Destroyed 9 | . . . . . 1 . 1 . 1 . . 1 3 2 Critical Strikes 35 | 1 2 4 . . 2 . 1 . 1 6 3 2 7 6 Burn 6 | 1 2 3 . . . . . . . . . . . . Destroy 19 | . . 1 . . 2 . 1 . 1 . . 1 7 6 Blast 10 | . . . . . . . . . . 6 3 1 . . Melee Attacks 12 | . . . . . . . . . . 5 . . . 7 Impact . | . . . . . . . . . . . . . . . Slashing 12 | . . . . . . . . . . 5 . . . 7 Piercing . | . . . . . . . . . . . . . . . Sneak Attacks 1 | . . . . . . . . . . . . . . 1 Combat Hostiles . | . . . . . . . . . . . . . . . Follow-up Attacks . | . . . . . . . . . . . . . . . Damage Inflicted 14970 | 72 829 1352 . 898 1373 71 193 . 342 2663 2958 380 599 3240 Guns 7702 | 72 829 1352 . 321 868 71 193 . 342 1260 754 153 462 1025 Cannons 6164 | . . . . 354 505 . . . . 1079 2015 227 137 1847 Explosions 1046 | . . . . 223 . . . . . 324 189 . . 310 Melee 58 | . . . . . . . . . . . . . . 58 Ramming . | . . . . . . . . . . . . . . . Kinetic 6666 | 35 287 742 . 189 370 . 58 . 56 1385 1758 327 311 1148 Thermal 6740 | 37 411 489 . 486 1003 71 135 . 286 954 1011 53 288 1516 Explosive 871 | . . . . 223 . . . . . 324 189 . . 135 Electromagnetic 635 | . 131 121 . . . . . . . . . . . 383 Impact . | . . . . . . . . . . . . . . . Slashing 58 | . . . . . . . . . . . . . . 58 Piercing . | . . . . . . . . . . . . . . . Highest Corruption 12 | . . . . . 1 1 1 1 5 . . 5 5 12 Average Corruption 3 | . . . . . 1 1 1 1 4 . . 5 5 6 Corruption Purged . | . . . . . . . . . . . . . . . Corruption Blocked . | . . . . . . . . . . . . . . . Effects 52 | . . . . . 1 1 . 1 11 . . 1 11 26 Message Errors 12 | . . . . . . . . . 1 . . . 2 9 Matter Fused 5 | . . . . . . . . . 2 . . . 1 2 Heat Flow Errors 7 | . . . . . 1 . . . 1 . . . 2 3 Energy Discharges 4 | . . . . . . . . . 2 . . . 1 1 Parts Rejected 3 | . . . . . . . . . 1 . . . . 2 Parts Fused 1 | . . . . . . . . . . . . . . 1 Data Loss (minor) 9 | . . . . . . 1 . . 2 . . . 3 3 Data Loss (major) 2 | . . . . . . . . 1 . . . . 1 . Misfires 3 | . . . . . . . . . 1 . . . . 2 Alerts 2 | . . . . . . . . . . . . 1 1 . Weapon Failures 4 | . . . . . . . . . 1 . . . . 3 Overload Shots . | . . . . . . . . . . . . . . . Overflow Damage 252 | . . . . 11 22 . . . . 4 28 . 14 173 Projectiles 229 | . . . . 11 22 . . . . 4 28 . 14 150 Explosions 23 | . . . . . . . . . . . . . . 23 Melee . | . . . . . . . . . . . . . . . Knockbacks 23 | . . . . . . . . . . 8 10 . 2 3 Impact . | . . . . . . . . . . . . . . . Kinetic 20 | . . . . . . . . . . 6 9 . 2 3 Secondary 3 | . . . . . . . . . . 2 1 . . . Self-Inflicted Damage 123 | . . . . . . . . . . . . . . 123 Shots 4 | . . . . . . . . . . . . . . 4 Rammed . | . . . . . . . . . . . . . . . Targets Rammed . | . . . . . . . . . . . . . . . Kicked . | . . . . . . . . . . . . . . . Crushed . | . . . . . . . . . . . . . . . Highest Temperature 458 | 70 324 436 . 294 204 72 189 . 398 427 458 72 228 364 Average Temperature 91 | 27 108 69 . 75 55 40 100 . 170 91 114 34 61 86 Received Heat Transfer 1878 | . 447 306 . 180 18 . . . 12 79 677 36 . 123 Effects 9 | . 3 1 . . . . . . 1 . 3 . . 1 Shutdowns 2 | . . 1 . . . . . . 1 . . . . . Interference 6 | . 3 . . . . . . . . . 3 . . . Short Circuit 1 | . . . . . . . . . . . . . . 1 Siege Activations 1 | . . . . . . . . . . . . . . 1 Total Turns 32 | . . . . . . . . . . . . . . 32 Longest Duration 32 | . . . . . . . . . . . . . . 32 Robots Corrupted 1 | . . . . . . . . . . . . . . 1 Combat Hostiles 1 | . . . . . . . . . . . . . . 1 Parts Fried 4 | . . 1 . . . . . . . . . . . 3 Impact Corruptions 1 | . . . . . . . . . . . 1 . . . Robots Melted . | . . . . . . . . . . . . . . . Combat Hostiles . | . . . . . . . . . . . . . . . Parts Melted 18 | . . 2 . 3 3 . . . 2 3 3 . . 2 Heat Transferred 10747 | 185 1369 1480 . 851 1663 90 175 . 455 1581 1560 74 555 709 Parts Sabotaged 5 | . . . . . . . . . . . . . . 5 Parts Stolen . | . . . . . . . . . . . . . . . Parts Stripped . | . . . . . . . . . . . . . . . Power Chain Reactions . | . . . . . . . . . . . . . . . Alert | -11 -10 -9 -9 -8 -7 -7 -7 -7 -6 -6 -6 -6 -6 -5 ------- Run | Yrd Mat Mat Min Mat Fac Low Low Dat Pro Fac Ext Cet Arc Fac Peak Influence 761 | 15 161 479 186 291 372 . . . . 761 514 429 286 595 Initial 600 | . 9 40 186 72 132 . . . . 600 259 220 91 30 Average 290 | 6 99 271 186 141 249 . . . . 635 373 314 198 250 Maximum Alert Level 3 | . . 2 . 1 1 . . . . 3 2 2 1 2 Low Security (%) 30 | 100 100 36 100 71 23 . . . . . 4 3 42 27 Level 1 46 | . . 40 . 28 76 . . . . . 57 82 57 62 Level 2 19 | . . 23 . . . . . . . 74 38 13 . 10 Level 3 2 | . . . . . . . . . . 25 . . . . Level 4 . | . . . . . . . . . . . . . . . Level 5 . | . . . . . . . . . . . . . . . High Security . | . . . . . . . . . . . . . . . Max Security . | . . . . . . . . . . . . . . . Squads Dispatched 15 | . 1 1 . 1 6 . . . . 1 2 . . 3 Investigation 1 | . 1 . . . . . . . . . . . . . Extermination 6 | . . . . . 4 . . . . . . . . 2 Reinforcement 8 | . . 1 . 1 2 . . . . 1 2 . . 1 Assault . | . . . . . . . . . . . . . . . Garrison . | . . . . . . . . . . . . . . . Intercept . | . . . . . . . . . . . . . . . Searches Triggered 2 | . . . . . . . . . . 2 . . . . Data Miner Redirects 1 | . . . . . . . . . . . . . . 1 Construction Impeded 3 | . . . . . 1 . . . . . 1 . . 1 Haulers Reinforced 1 | . . . . . 1 . . . . . . . . . Active Scanning Responses . | . . . . . . . . . . . . . . . Cargo Convoy Interrupts 1 | . . . . . . . . . . . . . . 1 Stealth | -11 -10 -9 -9 -8 -7 -7 -7 -7 -6 -6 -6 -6 -6 -5 --------- Run | Yrd Mat Mat Min Mat Fac Low Low Dat Pro Fac Ext Cet Arc Fac Distress Signals 10 | . 1 2 . 1 . . . . . 2 1 2 1 . Communications Jammed . | . . . . . . . . . . . . . . . Distress Signals . | . . . . . . . . . . . . . . . Times Spotted 198 | . 16 32 . 10 24 . 1 . 6 23 30 10 8 38 Peak Tracking Total 8 | . 4 6 . 5 5 . 1 . 3 4 4 5 1 8 Tactical Retreats 9 | . . . . . 5 . . . . 2 1 . . 1 Traps | -11 -10 -9 -9 -8 -7 -7 -7 -7 -6 -6 -6 -6 -6 -5 ------- Run | Yrd Mat Mat Min Mat Fac Low Low Dat Pro Fac Ext Cet Arc Fac Traps Triggered 7 | . 1 . . . . . . . . 3 1 . . 2 Indirectly . | . . . . . . . . . . . . . . . Trap Hack Attempts . | . . . . . . . . . . . . . . . Triggered . | . . . . . . . . . . . . . . . Disarmed . | . . . . . . . . . . . . . . . Reprogrammed . | . . . . . . . . . . . . . . . Reused . | . . . . . . . . . . . . . . . Traps Extracted . | . . . . . . . . . . . . . . . Installed . | . . . . . . . . . . . . . . . Triggered . | . . . . . . . . . . . . . . . Machines | -11 -10 -9 -9 -8 -7 -7 -7 -7 -6 -6 -6 -6 -6 -5 ---------- Run | Yrd Mat Mat Min Mat Fac Low Low Dat Pro Fac Ext Cet Arc Fac Machines Disabled 25 | . . 4 . . 1 . . . . 3 2 . 3 12 Max in Single Turn 5 | . . 1 . . 1 . . . . 2 1 . 1 5 Machines Repaired . | . . . . . . . . . . . . . . . Machines Dismantled . | . . . . . . . . . . . . . . . Machines Sabotaged . | . . . . . . . . . . . . . . . Overloaded Fab Kills . | . . . . . . . . . . . . . . . Hacking | -11 -10 -9 -9 -8 -7 -7 -7 -7 -6 -6 -6 -6 -6 -5 --------- Run | Yrd Mat Mat Min Mat Fac Low Low Dat Pro Fac Ext Cet Arc Fac Machines Accessed 22 | . 1 2 . 3 4 . . 4 . . 5 1 . 2 Terminals 15 | . 1 2 . 3 2 . . . . . 5 1 . 1 Fabricators . | . . . . . . . . . . . . . . . Repair Stations 3 | . . . . . 2 . . . . . . . . 1 Recycling Units . | . . . . . . . . . . . . . . . Scanalyzers . | . . . . . . . . . . . . . . . Garrison Access . | . . . . . . . . . . . . . . . Total Hacks 69 | . 3 4 . 8 7 . . 30 . . 13 1 . 3 Successful 46 | . 1 2 . 2 5 . . 30 . . 4 1 . 1 Failed 23 | . 2 2 . 6 2 . . . . . 9 . . 2 Catastrophic 6 | . 1 1 . . 1 . . . . . 2 . . 1 Database Lockouts . | . . . . . . . . . . . . . . . Manual 17 | . 3 3 . 2 1 . . . . . 5 1 1 1 Terminals 33 | . 3 4 . 8 3 . . . . . 13 1 . 1 Fabricators . | . . . . . . . . . . . . . . . Repair Stations 6 | . . . . . 4 . . . . . . . . 2 Recycling Units . | . . . . . . . . . . . . . . . Scanalyzers . | . . . . . . . . . . . . . . . Garrison Access . | . . . . . . . . . . . . . . . Terminal Hacks 40 | . 1 1 . 1 2 . . 30 . . 4 1 . . Record 11 | . . . . . . . . 11 . . . . . . Part Schematic 10 | . 1 . . . . . . 9 . . . . . . Robot Schematic 7 | . . . . . . . . 7 . . . . . . Prototype ID Bank 3 | . . . . . . . . 3 . . . . . . Open Door 1 | . . . . . . . . . . . . 1 . . Branch Access Points 1 | . . . . . 1 . . . . . . . . . Alert Level 2 | . . 1 . . . . . . . . 1 . . . Unreport Threat 2 | . . . . . . . . . . . 2 . . . Locate Traps 1 | . . . . . . . . . . . 1 . . . Zone Layout 2 | . . . . 1 1 . . . . . . . . . Fabricator Hacks . | . . . . . . . . . . . . . . . Repair Station Hacks 4 | . . . . . 3 . . . . . . . . 1 Scan Component 3 | . . . . . 2 . . . . . . . . 1 Repair 1 | . . . . . 1 . . . . . . . . . Recycling Unit Hacks . | . . . . . . . . . . . . . . . Scanalyzer . | . . . . . . . . . . . . . . . Garrison Access Hacks . | . . . . . . . . . . . . . . . Unauthorized Hacks 2 | . . 1 . 1 . . . . . . . . . . Terminals 2 | . . 1 . 1 . . . . . . . . . . Track 2 | . . 1 . 1 . . . . . . . . . . Fabricators . | . . . . . . . . . . . . . . . Repair Stations . | . . . . . . . . . . . . . . . Recycling Units . | . . . . . . . . . . . . . . . Scanalyzers . | . . . . . . . . . . . . . . . Garrison Access . | . . . . . . . . . . . . . . . Data Cores Recovered 1 | . . . . . . . . . . 1 . . . . Used . | . . . . . . . . . . . . . . . Hacking Detections 17 | . 1 2 . 3 4 . . . . . 5 . . 2 Full Trace Events . | . . . . . . . . . . . . . . . Feedback Events . | . . . . . . . . . . . . . . . Feedback Blocked . | . . . . . . . . . . . . . . . Robot Schematics Acquired 7 | . . . . . . . . 7 . . . . . . Robots Built . | . . . . . . . . . . . . . . . Authchips . | . . . . . . . . . . . . . . . Time . | . . . . . . . . . . . . . . . Total Robot Build Rating . | . . . . . . . . . . . . . . . Part Schematics Acquired 10 | . 1 . . . . . . 9 . . . . . . Parts Built . | . . . . . . . . . . . . . . . Authchips . | . . . . . . . . . . . . . . . Time . | . . . . . . . . . . . . . . . Total Part Build Rating . | . . . . . . . . . . . . . . . Parts Repaired 1 | . . . . . 1 . . . . . . . . . Time 38 | . . . . . 38 . . . . . . . . . Parts Recycled . | . . . . . . . . . . . . . . . Recycled Matter . | . . . . . . . . . . . . . . . Retrieved Matter . | . . . . . . . . . . . . . . . Retrieved Components . | . . . . . . . . . . . . . . . Parts Scanalyzed . | . . . . . . . . . . . . . . . Part Schematics Acquired . | . . . . . . . . . . . . . . . Parts Damaged . | . . . . . . . . . . . . . . . Bothacking | -11 -10 -9 -9 -8 -7 -7 -7 -7 -6 -6 -6 -6 -6 -5 ------------ Run | Yrd Mat Mat Min Mat Fac Low Low Dat Pro Fac Ext Cet Arc Fac Used RIF Installer . | . . . . . . . . . . . . . . . Robots Hacked . | . . . . . . . . . . . . . . . Non-combat . | . . . . . . . . . . . . . . . Combat . | . . . . . . . . . . . . . . . Robot Hacks Applied . | . . . . . . . . . . . . . . . Relay Couplers Released . | . . . . . . . . . . . . . . . Fabnet Peak Effective % . | . . . . . . . . . . . . . . . Robots Rewired 9 | . . . . . . . . . . . 9 . . . Allies Hacked . | . . . . . . . . . . . . . . . Hacks Repelled . | . . . . . . . . . . . . . . . Allies | -11 -10 -9 -9 -8 -7 -7 -7 -7 -6 -6 -6 -6 -6 -5 -------- Run | Yrd Mat Mat Min Mat Fac Low Low Dat Pro Fac Ext Cet Arc Fac Total Allies 19 | . . . . . . . . . . . 14 5 . . Largest Group 12 | . . . . . . . . . . . 9 12 9 . Highest-Rated Group 784 | . . . . . . . . . . . 382 784 666 . Highest-Rated Ally 159 | . . . . . . . . . . . 159 159 140 . Total Orders 1 | . . . . . . . . . . 1 . . . . EXPLORE 1 | . . . . . . . . . . 1 . . . . Ally Attacks 194 | . . . . . . . . . . . 100 61 33 . Total Damage 5434 | . . . . . . . . . . . 2059 1912 1463 . Kills 31 | . . . . . . . . . . . 17 9 5 . Allies Corrupted . | . . . . . . . . . . . . . . . Allies Melted . | . . . . . . . . . . . . . . . Intel | -11 -10 -9 -9 -8 -7 -7 -7 -7 -6 -6 -6 -6 -6 -5 ------- Run | Yrd Mat Mat Min Mat Fac Low Low Dat Pro Fac Ext Cet Arc Fac Robot Analysis Total . | . . . . . . . . . . . . . . . Derelict Logs Recovered 5 | . . . . . . 2 2 . 1 . . . . . Drone Launches 1 | . . . . . . . . . . 1 . . . . Drone Recoveries 1 | . . . . . . . . . . 1 . . . . Exploration | -11 -10 -9 -9 -8 -7 -7 -7 -7 -6 -6 -6 -6 -6 -5 ------------- Run | Yrd Mat Mat Min Mat Fac Low Low Dat Pro Fac Ext Cet Arc Fac Turns Passed 7961 | 112 620 772 14 310 1017 174 414 88 480 737 1101 434 633 1055 Spaces Moved 4718 | 102 283 411 14 171 718 156 375 82 388 452 720 227 152 467 Core 18 | 2 16 . . . . . . . . . . . . . Treads 822 | . . . . . . . . . . . . 203 152 467 Legs 115 | . 115 . . . . . . . . . . . . . Wheels 3763 | 100 152 411 14 171 718 156 375 82 388 452 720 24 . . Hover . | . . . . . . . . . . . . . . . Flight . | . . . . . . . . . . . . . . . Fastest Speed 50 | 50 80 86 101 100 100 108 108 108 108 100 100 135 160 160 Average Speed 119 | 79 139 99 101 104 112 108 108 108 108 107 113 157 161 160 Slowest Speed 250 | 80 250 120 101 105 115 108 108 108 108 160 185 160 240 246 Overloaded Moves . | . . . . . . . . . . . . . . . Propulsion Burnouts . | . . . . . . . . . . . . . . . Robots Hopped . | . . . . . . . . . . . . . . . Cave-ins Triggered 3 | . . . . . . . . . 2 . . . . 1 Exploration Rate (%) 42 | 4 59 40 8 12 20 36 53 69 55 17 80 88 87 15 Regions Visited 14 Branch Regions 8 Pre-discovered Areas 2 | . . . . . . . . 1 1 . . . . . Known Exits Taken 2 | . . . . . 1 . . . . 1 . . . . Unknown Exits Taken 12 | 1 1 1 1 1 . 1 1 1 1 . 1 1 1 . Scrap Searched 3 | . . . . . . . 2 . 1 . . . . . Spaces Dug 46 | . . . . . 8 . . . 27 5 . . . 6 Terrain Destroyed 287 | . . . . 31 11 . . . 36 11 48 5 3 142 Melee 11 | . . . . . . . . . . 5 . . . 6 Projectile 84 | . . . . 3 3 . . . . 6 16 5 3 48 AOE 192 | . . . . 28 8 . . . 36 . 32 . . 88 Terrain Rammed . | . . . . . . . . . . . . . . . Walls Destroyed . | . . . . . . . . . . . . . . . Machines Disabled . | . . . . . . . . . . . . . . . Actions | -11 -10 -9 -9 -8 -7 -7 -7 -7 -6 -6 -6 -6 -6 -5 --------- Run | Yrd Mat Mat Min Mat Fac Low Low Dat Pro Fac Ext Cet Arc Fac Total 6234 | 120 400 633 13 251 861 157 379 81 423 592 889 297 507 631 Wait 642 | 2 28 88 . 10 63 . . . 13 39 25 29 306 39 Move 4703 | 101 282 410 13 170 717 155 374 81 386 451 719 226 151 467 Hop . | . . . . . . . . . . . . . . . Pick Up 86 | 5 7 22 . 10 10 . 1 . 1 5 7 8 3 7 Fast Attach 81 | 6 8 9 . 3 8 . . . 2 18 5 3 7 12 Attach 44 | 1 3 7 . 4 2 . . . . 4 8 5 1 9 Detach 11 | . 2 2 . . 3 . . . . 2 1 1 . . Swap 70 | . 1 8 . 7 7 . . . 4 7 6 5 6 19 Drop 93 | . 2 13 . 15 16 . 1 . 2 6 3 13 11 11 Fire 437 | 5 67 74 . 32 35 2 3 . 14 54 62 7 22 60 Melee 12 | . . . . . . . . . . 5 . . . 7 Ram . | . . . . . . . . . . . . . . . Kick . | . . . . . . . . . . . . . . . Crush . | . . . . . . . . . . . . . . . Escape Stasis 9 | . . . . . . . . . 1 . 8 . . . Rewire 46 | . . . . . . . . . . 1 45 . . . Trap . | . . . . . . . . . . . . . . . Miscellaneous . | . . . . . . . . . . . . . . . Route ------- -11/Scrapyard -10/Materials (discovered 4 exits: *Mat x2 / [*Min x2]) -9/Materials -9/Mines -8/Materials -7/Factory (discovered 2 exits: *Low x2) -7/Lower Caves -7/Lower Caves (discovered 2 exits: *Fac / *Dat) -7/Data Miner -6/Proximity Caves -6/Factory (discovered 2 exits: [*Low] / *Ext) -6/Extension (discovered 2 exits: *Fac / *Cet) -6/Cetus (discovered 2 exits: *Fac / *Arc) -6/Archives (discovered 3 exits: *Fac / [*Hub x2]) -5/Factory History --------- Turn | Location | Event 27 | -11/Scrapyard | Discovered new exit (range 15) 113 | -11/Scrapyard | Entered Materials 173 | -10/Materials | Discovered new exit (range 12) 256 | -10/Materials | Lost 5 parts (1p2n1u1w) 300 | -10/Materials | Build established: Mutant 326 | -10/Materials | Discovered new exit (range 14) 491 | -10/Materials | Discovered new exit (range 6) 596 | -10/Materials | Core integrity fell below 50% 614 | -10/Materials | Discovered new exit (range 16) 682 | -10/Materials | Lost 5 parts (1p2n2w) 733 | -10/Materials | Entered another Materials area 733 | -9/Materials | Evolved 2 slots: Propulsion x1, Utility x1 1011 | -9/Materials | Build established: Scavenger-Mutant 1121 | -9/Materials | Discovered new exit (range 13) 1505 | -9/Materials | Entered Mines 1505 | -9/Mines | Discovered new exit (range 12) 1519 | -9/Mines | Entered Materials 1519 | -8/Materials | Evolved 2 slots: Propulsion x1, Utility x1 1808 | -8/Materials | Discovered new exit (range 16) 1829 | -8/Materials | Entered Factory 1829 | -7/Factory | Evolved 2 slots: Utility x1, Weapon x1 2244 | -7/Factory | Repaired Imp. Heat Sink 2253 | -7/Factory | Identified exit to Lower Caves 2528 | -7/Factory | Build established: Scavenger-Gunner 2846 | -7/Factory | Entered Lower Caves 2851 | -7/Lower Caves | Learned 4 Factory zone layouts 2966 | -7/Lower Caves | Encountered a Warlord checkpoint 2998 | -7/Lower Caves | Learned Factory non-interactive machine intel 3017 | -7/Lower Caves | Discovered new exit (range 3) 3020 | -7/Lower Caves | Entered another Lower Caves area 3041 | -7/Lower Caves | Learned Factory non-interactive machine intel 3068 | -7/Lower Caves | Discovered new exit (range 11) 3297 | -7/Lower Caves | Learned location of 1 exit from Factory 3423 | -7/Lower Caves | Discovered new exit (range 14) 3434 | -7/Lower Caves | Entered Data Miner 3434 | -7/Data Miner | Discovered new exit (range 6) 3455 | -7/Data Miner | Met Data Miner 3477 | -7/Data Miner | Learned location of Section 7 (-2) 3477 | -7/Data Miner | Acquired the access code to Warlord's prototype stash 3497 | -7/Data Miner | Received God Mode back door access code from Data Miner 3522 | -7/Data Miner | Entered Proximity Caves 3533 | -6/Proximity Caves | Spotted B-75 Beast 3631 | -6/Proximity Caves | Crushed by falling debris 3633 | -6/Proximity Caves | Crushed by falling debris 3714 | -6/Proximity Caves | Attracted the attention of an 0b10 checkpoint 3727 | -6/Proximity Caves | Spotter reported a threat 3786 | -6/Proximity Caves | Spotter reported a threat 3817 | -6/Proximity Caves | Spotter reported a threat 3839 | -6/Proximity Caves | Spotter reported a threat 3961 | -6/Proximity Caves | Learned location of Extension (-6) 3980 | -6/Proximity Caves | Discovered new exit (range 8) 4002 | -6/Proximity Caves | Entered Factory 4002 | -6/Factory | Evolved 2 slots: Utility x2 4003 | -6/Factory | Identified exit to Extension 4005 | -6/Factory | Loaded intel: 162 non-interactive machine locations 4145 | -6/Factory | Discovered new exit (range 33) 4281 | -6/Factory | Lost 5 parts (3n2u) 4352 | -6/Factory | Search patrols dispatched 4702 | -6/Factory | Search patrols dispatched 4739 | -6/Factory | Entered Extension 4825 | -6/Extension | Rescued a captive Derelict 4826 | -6/Extension | Rescued a captive Derelict 5015 | -6/Extension | Rescued a captive Derelict 5020 | -6/Extension | Spotted B-75 Beast 5100 | -6/Extension | Lost 5 parts (4n1u) 5236 | -6/Extension | Build established: Scavenger-Tank 5439 | -6/Extension | Spotted B-75 Beast 5459 | -6/Extension | Allies destroyed B-75 Beast 5464 | -6/Extension | Disrupted transfer network 5466 | -6/Extension | Allies destroyed B-75 Beast 5480 | -6/Extension | Lost 3 parts (1n1u1w) 5513 | -6/Extension | Rescued A7 5752 | -6/Extension | Rescued a captive Derelict 5811 | -6/Extension | Discovered new exit (range 10) 5814 | -6/Extension | Discovered new exit (range 6) 5840 | -6/Extension | Entered Cetus 5840 | -6/Cetus | Accompanied by 9 allies (A7) 5845 | -6/Cetus | Acquired a Cetus Manufacturing Module code from A7 5853 | -6/Cetus | Spotted Cetus Guard 5854 | -6/Cetus | Spotted Cetus Guard 5857 | -6/Cetus | Spotted Cetus Guard 5865 | -6/Cetus | Spotted Cetus Guard 5878 | -6/Cetus | Allies destroyed Cetus Guard 5880 | -6/Cetus | Destroyed Cetus Guard 5880 | -6/Cetus | Allies destroyed Cetus Guard 5883 | -6/Cetus | Allies destroyed Cetus Guard 5971 | -6/Cetus | Started Cetus Manufacturing Module 5988 | -6/Cetus | Escorted A7 to Cetus Mainframe 5996 | -6/Cetus | Manufactured an Enhanced Grunt 6021 | -6/Cetus | Manufactured an Enhanced Grunt 6046 | -6/Cetus | Manufactured an Enhanced Grunt 6071 | -6/Cetus | Manufactured an Enhanced Grunt 6096 | -6/Cetus | Manufactured an Enhanced Grunt 6121 | -6/Cetus | Discovered new exit (range 21) 6154 | -6/Cetus | Spotted Cetus Guard 6156 | -6/Cetus | Spotted Cetus Guard 6156 | -6/Cetus | Spotted Cetus Guard 6161 | -6/Cetus | Discovered new exit (range 22) 6164 | -6/Cetus | Allies destroyed Cetus Guard 6164 | -6/Cetus | Spotted Cetus Guard 6177 | -6/Cetus | Allies destroyed Cetus Guard 6178 | -6/Cetus | Allies destroyed Cetus Guard 6180 | -6/Cetus | Allies destroyed Cetus Guard 6187 | -6/Cetus | Met Revision 17 6201 | -6/Cetus | Lost 3 allies 6274 | -6/Cetus | Entered Archives 6274 | -6/Archives | Accompanied by 9 allies (A7) 6279 | -6/Archives | Received a hacking code to weaken MAIN.C 6311 | -6/Archives | Discovered new exit (range 21) 6334 | -6/Archives | Lost 3 allies 6351 | -6/Archives | Discovered new exit (range 16) 6386 | -6/Archives | Found Prototype Device 6386 | -6/Archives | Identified Exp. Thermal Shield 6533 | -6/Archives | Unable to access archive contents 6539 | -6/Archives | Discovered new exit (range 14) 6907 | -6/Archives | Entered Factory 6907 | -5/Factory | Evolved 2 slots: Power x1, Utility x1 6908 | -5/Factory | Loaded intel: 240 non-interactive machine locations 7238 | -5/Factory | Build established: Scavenger-Gunner 7489 | -5/Factory | Crushed by falling debris 7898 | -5/Factory | Cargo convoy interrupted 7916 | -5/Factory | Incoming assault squad redirected 7918 | -5/Factory | System corruption reached 10% 7962 | -5/Factory | Self-destructed Last Messages --------------- 07950_ U-05 Engineer builds a Wall. 07950_ Penetrated by Slug. 07952_ K-01 Serf destroyed. 07952_ Slug penetrates Wall. 07952_ H-66 Slayer shuts down. 07952_ Penetrated by Slug. 07953_ H-66 Slayer system terminally corrupted. 07953_ Hvy. Assault Rifle fried. 07953_ Lgt. Fission Core fried. 07953_ Penetrated by Slug. 07954_ H-66 Slayer destroyed. 07955_ U-05 Engineer builds a Wall. 07955_ Penetrated by Slug. 07955_ Centrium Medium Armor Plating destroyed. 07957_ U-05 Engineer builds a Wall. 07958_ |GT2AXNI4G8HCNIUC6|TUG&FEJW1OCQX 07958_ Slug penetrates Wall. 07959_ Penetrated by Slug. 07959_ Quantum Reactor destroyed. 07961_ Penetrated by Slug. Map ----- +----------------------------------------------------+ | ?????????????????????????????????????????????????? | | ?????????????????????????????????????????????????? | | ????????????????"""""????????????????????????????? | | ????????????????"""""????????????????????????????? | | ????????????????"""??????????????????????????????? | | ?????????????????????????????????????????????????? | | ?"""?????????????????????????????????????????????? | | """"???????????????????????###??????????????""""?" | | """"??????????????????????? | ??????????????""""?" | | ??????????????????????????? ??????????????""""?" | | ?"""???????????????????"""?"""??????????????""""?" | | """"???????????????????"""?"""???????????????????? | | """"???????"""?"""?????"""?"""??????????????""""?" | | ???????????"""?"""????????? ??????????????""""?" | | ???????????"""?"""????????? ?????##???????""""?" | | ??????????????????????????? % ??### ####????""""?" | | ?????????????????###########/### #?????????? | | ?????????????????? # ###?????? | | ???????????????????? ??????? | | ?????????????????????? ????????? | | ???????????????????????? | ??????????? | | ????????????????????????=%=[[%=%! ?????????????? | | ???????????????????#########+### ???????????????? | | ???????????????????# ===*%|! ##????????????????? | | ""?????????????????# %!=!%h%|### #???????????? | | ""?????????????????#"""*]@==h![ # #???????????? | | ""?????????????????#"R [=!!![u### #???????????? | | ?????????""""""????#""" /=!![=### #???????????? | | ""???????""""""????# "" !![ ### #???????????? | | ""???????""""""??### [ =%= # # #???????????? | | ""???????""""""?## ############### #???????????? | | ????????????????# # #???????????? | | ""??????????????# # #???????????? | | ""??????????????# = # #???????????? | | ""??????????????# # %#???????????? | | ????????????????# + +???????????? | | ????????????????# # #???????????? | | ????????????????# ###########?? | | ????????????????# # # ! #?? | | ????????????????# !% # # #?? | | ????????????????## ############### # """"" #?? | | ?????????????????## # # # # """"" #?? | | ??????????????????# # ! != # # """ #?? | | ??????????????????#?### = =| [!# # #?? | | ??????????????????????### ![!= # # #?? | | ????????????????????????# ! * + + #?? | | ?????"""????????????????# # #########/### | | ?????"""????????????????#= = # #?????# | | ?????"""????????????????# # #?????# !!] | | ????????????????????????# # #?????# !! | +----------------------------------------------------+ Best States ------------- Heat Dissipation 71 Energy Generation 35 Energy Capacity 400 Matter Stores 300 Matter Capacity 300 Sight Range 22 Robot Scan Range 16 Terrain Scan Density 10 Armor Coverage 450 Propulsion Shielding 90 Evasion (%) 44 Targeting Accuracy 14 Core Analysis 6 Recoil Reduction 4 Particle Charging 15 Kinecelleration 40 Offensive Hacking 10 Item Schematics ----------------- Hcp. Storage Unit | -10/Materials | Hacked Combat Drone Bay | -7/Data Miner | Free Lgt. Regenerative Plating | -7/Data Miner | Free Cld. Aerolev Unit | -7/Data Miner | Free Exp. Propulsion Shielding | -7/Data Miner | Free Com. Ion Cannon | -7/Data Miner | Free Nuclear Pulse Array | -7/Data Miner | Free Imp. Weapon Cycler | -7/Data Miner | Free Disruptor Cannon | -7/Data Miner | Free Adv. VSS Leg | -7/Data Miner | Free Robot Schematics ------------------ A-15 Conveyor | -7/Data Miner | Free I-36 Angel | -7/Data Miner | Free M-28 Smith | -7/Data Miner | Free L-41 Fighter | -7/Data Miner | Free H-66 Slayer | -7/Data Miner | Free Y-54 Guardian | -7/Data Miner | Free B-60 Warrior | -7/Data Miner | Free Fabricated ------------ Nothing Alien Tech Used ----------------- None Achievements -------------- Main Advantage Challenges ------------ None Game ------ Seed XenonRemoteFemtoactuators Manual? 0 Play Time 01:08:34 Cumulative 436.7 hours Start 2024.06.06 @ 20:21:00 End 2024.06.06 @ 21:28:41 Sessions 1 Manual Loads 0 Difficulty Rogue Special Mode None Game No. 489 Rogue 489 Adventurer 0 Explorer 0 Win Type - Total 36 Types 24/3/8/1/0/0/0/0/0 Lore% 73 Gallery% 84 Achievement% 63 Wizard Run 0 Options --------- Layout 1 ASCII 1 Keyboard 1 Movement Numpad Keybinds 0 Fullscreen 1 Font 24/Tamsyn Map View 50x35 Zoom Use 0% Tactical HUD 1 Map Filters NONE Filters NONE Steam 1 RUN: 4295c4ae-8445-4825-baf8-a64fcd25cd3d